fUST/lending_fUST_20260526
["ID","MTS","AMOUNT","RATE_DAILY","PERIOD"]
[423021859,1779761443000,-500.50880907,8.493e-05,2]
[423021861,1779761443000,-500.0,8.493e-05,2]
[423021862,1779761443000,-500.0,8.493e-05,2]
[423021869,1779761443000,-500.6296141,8.493e-05,2]
[423021867,1779761443000,-500.35829912,8.493e-05,2]
[423021871,1779761443000,-500.0,8.493e-05,2]
[423021868,1779761443000,-500.0,8.493e-05,2]
[423021875,1779761443000,-500.0,8.493e-05,2]
[423021873,1779761443000,-500.0,8.493e-05,2]
[423021879,1779761443000,-500.46110085,8.493e-05,2]
[423021874,1779761443000,-500.0,8.493e-05,2]
[423021877,1779761443000,-500.47362068,8.493e-05,2]
[423021872,1779761443000,-500.0,8.493e-05,2]
[423021880,1779761443000,-500.0,8.493e-05,2]
[423021876,1779761443000,-500.57324484,8.493e-05,2]
[423021878,1779761443000,-268.79199172,8.493e-05,2]
[423021882,1779761443000,-500.50755703,8.493e-05,2]
[423021883,1779761443000,-504.11175842,8.493e-05,2]
[423021881,1779761443000,-500.0,8.493e-05,2]
[423021820,1779761443000,-501.53677376,8.493e-05,2]
[423021865,1779761443000,-575.99870113,8.493e-05,2]
[423021858,1779761443000,-500.0,8.493e-05,2]
[423021870,1779761443000,-500.0,8.493e-05,2]
[423021849,1779761443000,-500.0,8.493e-05,2]
[423021823,1779761443000,-380.03322273,8.493e-05,2]
[423021855,1779761443000,-500.0,8.493e-05,2]
[423021825,1779761443000,-500.0,8.493e-05,2]
[423021824,1779761443000,-500.32596213,8.493e-05,2]
[423021827,1779761443000,-501.28350566,8.493e-05,2]
[423021826,1779761443000,-501.43057388,8.493e-05,2]
[423021839,1779761443000,-500.0,8.493e-05,2]
[423021838,1779761443000,-500.46196351,8.493e-05,2]
[423021840,1779761443000,-500.0,8.493e-05,2]
[423021828,1779761443000,-562.8530888,8.493e-05,2]
[423021832,1779761443000,-501.20106094,8.493e-05,2]
[423021835,1779761443000,-500.25900731,8.493e-05,2]
[423021830,1779761443000,-500.58195449,8.493e-05,2]
[423021833,1779761443000,-501.30480761,8.493e-05,2]
[423021837,1779761443000,-500.85559149,8.493e-05,2]
[423021848,1779761443000,-639.91009301,8.493e-05,2]
[423021845,1779761443000,-500.0,8.493e-05,2]
[423021829,1779761443000,-597.34,8.493e-05,2]
[423021853,1779761443000,-500.0,8.493e-05,2]
[423021847,1779761443000,-546.72050921,8.493e-05,2]
[423021850,1779761443000,-501.75426516,8.493e-05,2]
[423021851,1779761443000,-500.0,8.493e-05,2]
[423021846,1779761443000,-500.0,8.493e-05,2]
[423021844,1779761443000,-342.01162423,8.493e-05,2]
[423021841,1779761443000,-500.0,8.493e-05,2]
[423021843,1779761443000,-501.26095609,8.493e-05,2]
[423021842,1779761443000,-500.33977144,8.493e-05,2]
[423021836,1779761443000,-500.0,8.493e-05,2]
[423021852,1779761443000,-1223.94,8.493e-05,2]
[423021931,1779761444000,-500.21163113,8.493e-05,2]
[423021927,1779761444000,-500.0,8.493e-05,2]
[423021924,1779761444000,-500.0,8.493e-05,2]
[423021928,1779761444000,-500.0,8.493e-05,2]
[423021926,1779761444000,-500.0,8.493e-05,2]
[423021932,1779761444000,-500.0,8.493e-05,2]
[423021919,1779761444000,-500.91828229,8.493e-05,2]
[423021922,1779761444000,-502.27713769,8.493e-05,2]
[423021930,1779761444000,-500.0,8.493e-05,2]
[423021921,1779761444000,-502.04515309,8.493e-05,2]
[423021920,1779761444000,-500.0,8.493e-05,2]
[423021923,1779761444000,-500.0,8.493e-05,2]
[423021925,1779761444000,-500.0,8.493e-05,2]
[423021929,1779761444000,-500.0,8.493e-05,2]
[423021948,1779761444000,-500.0,8.493e-05,2]
[423021943,1779761444000,-500.52302768,8.493e-05,2]
[423021942,1779761444000,-500.0,8.493e-05,2]
[423021945,1779761444000,-500.0,8.493e-05,2]
[423021944,1779761444000,-500.0,8.493e-05,2]
[423021934,1779761444000,-500.0,8.493e-05,2]
[423021936,1779761444000,-501.59529345,8.493e-05,2]
[423021937,1779761444000,-500.0,8.493e-05,2]
[423021938,1779761444000,-500.0,8.493e-05,2]
[423021940,1779761444000,-500.0,8.493e-05,2]
[423021941,1779761444000,-500.0,8.493e-05,2]
[423021939,1779761444000,-500.0,8.493e-05,2]
[423021935,1779761444000,-500.0,8.493e-05,2]
[423021915,1779761444000,-500.0,8.493e-05,2]
[423021933,1779761444000,-500.0,8.493e-05,2]
[423021914,1779761444000,-500.67096914,8.493e-05,2]
[423021888,1779761444000,-501.44724951,8.493e-05,2]
[423021910,1779761444000,-500.52027314,8.493e-05,2]
[423021892,1779761444000,-500.72560497,8.493e-05,2]
[423021886,1779761444000,-500.0,8.493e-05,2]
[423021891,1779761444000,-778.47,8.493e-05,2]
[423021887,1779761444000,-500.0,8.493e-05,2]
[423021885,1779761444000,-508.38339088,8.493e-05,2]
[423021889,1779761444000,-500.0,8.493e-05,2]
[423021890,1779761444000,-651.45,8.493e-05,2]
[423021893,1779761444000,-500.0,8.493e-05,2]
[423021894,1779761444000,-581.52978652,8.493e-05,2]
[423021899,1779761444000,-500.0,8.493e-05,2]
[423021896,1779761444000,-500.0,8.493e-05,2]
[423021903,1779761444000,-500.0,8.493e-05,2]
[423021897,1779761444000,-500.50479475,8.493e-05,2]
[423021901,1779761444000,-502.30909093,8.493e-05,2]
[423021898,1779761444000,-502.39710445,8.493e-05,2]
[423021895,1779761444000,-362.17548523,8.493e-05,2]
[423021900,1779761444000,-500.0,8.493e-05,2]
[423021902,1779761444000,-527.4894581,8.493e-05,2]
[423021905,1779761444000,-500.0,8.493e-05,2]
[423021904,1779761444000,-575.4656802,8.493e-05,2]
[423021907,1779761444000,-501.15991206,8.493e-05,2]
[423021906,1779761444000,-500.0,8.493e-05,2]
[423021917,1779761444000,-501.27871863,8.493e-05,2]
[423021918,1779761444000,-313.17695423,8.493e-05,2]
[423021908,1779761444000,-501.08178708,8.493e-05,2]
[423021909,1779761444000,-500.0,8.493e-05,2]
[423021912,1779761444000,-500.0,8.493e-05,2]
[423021911,1779761444000,-500.0,8.493e-05,2]
[423021913,1779761444000,-500.0,8.493e-05,2]
[423021916,1779761444000,-500.0,8.493e-05,2]
[423021946,1779761444000,-500.0,8.493e-05,2]
[423021950,1779761444000,-502.45648542,8.493e-05,2]
[423021953,1779761444000,-500.0,8.493e-05,2]
[423021984,1779761444000,-500.0,8.493e-05,2]
[423021994,1779761444000,-811.18,8.493e-05,2]
[423021988,1779761444000,-2191.2,8.493e-05,2]
[423021992,1779761444000,-963.75,8.493e-05,2]
[423021985,1779761444000,-502.33253212,8.493e-05,2]
[423021993,1779761444000,-152.46540606,8.493e-05,2]
[423021989,1779761444000,-500.78527965,8.493e-05,2]
[423021995,1779761444000,-494.72097139,8.493e-05,2]
[423021986,1779761444000,-500.0,8.493e-05,2]
[423021990,1779761444000,-1294.75,8.493e-05,2]
[423021987,1779761444000,-571.87,8.493e-05,2]
[423021991,1779761444000,-962.38,8.493e-05,2]
[423021997,1779761444000,-500.0,8.493e-05,2]
[423021982,1779761444000,-502.37321147,8.493e-05,2]
[423022007,1779761444000,-500.0,8.493e-05,2]
[423021996,1779761444000,-1065.8,8.493e-05,2]
[423022005,1779761444000,-2395.51,8.493e-05,2]
[423022003,1779761444000,-500.0,8.493e-05,2]
[423022006,1779761444000,-828.07,8.493e-05,2]
[423022002,1779761444000,-3982.73,8.493e-05,2]
[423021999,1779761444000,-500.0,8.493e-05,2]
[423021998,1779761444000,-500.0,8.493e-05,2]
[423022001,1779761444000,-2277.42,8.493e-05,2]
[423022000,1779761444000,-1477.58,8.493e-05,2]
[423022004,1779761444000,-921.17,8.493e-05,2]
[423022010,1779761444000,-4003.88,8.493e-05,2]
[423021952,1779761444000,-206.68005739,8.493e-05,2]
[423022009,1779761444000,-500.87886045,8.493e-05,2]
[423022008,1779761444000,-237.5794323,8.493e-05,2]
[423021981,1779761444000,-501.6618017,8.493e-05,2]
[423022011,1779761444000,-500.0,8.493e-05,2]
[423021978,1779761444000,-500.0,8.493e-05,2]
[423021973,1779761444000,-500.0,8.493e-05,2]
[423021951,1779761444000,-199.5886521,8.493e-05,2]
[423021947,1779761444000,-500.0,8.493e-05,2]
[423021949,1779761444000,-500.56908023,8.493e-05,2]
[423021955,1779761444000,-500.0,8.493e-05,2]
[423021957,1779761444000,-502.69176403,8.493e-05,2]
[423021958,1779761444000,-1046.45,8.493e-05,2]
[423021959,1779761444000,-500.0,8.493e-05,2]
[423021956,1779761444000,-1008.31,8.493e-05,2]
[423021961,1779761444000,-500.97527908,8.493e-05,2]
[423021971,1779761444000,-1278.55,8.493e-05,2]
[423021962,1779761444000,-500.0,8.493e-05,2]
[423021960,1779761444000,-719.79,8.493e-05,2]
[423021963,1779761444000,-3268.63,8.493e-05,2]
[423021954,1779761444000,-500.0,8.493e-05,2]
[423021964,1779761444000,-500.54116099,8.493e-05,2]
[423021969,1779761444000,-500.0,8.493e-05,2]
[423021979,1779761444000,-202.80740255,8.493e-05,2]
[423021983,1779761444000,-500.0,8.493e-05,2]
[423021977,1779761444000,-500.0,8.493e-05,2]
[423021976,1779761444000,-900.0,8.493e-05,2]
[423021975,1779761444000,-500.0,8.493e-05,2]
[423021980,1779761444000,-500.0,8.493e-05,2]
[423021972,1779761444000,-500.0,8.493e-05,2]
[423021970,1779761444000,-500.0,8.493e-05,2]
[423021966,1779761444000,-500.59283035,8.493e-05,2]
[423021965,1779761444000,-1941.82,8.493e-05,2]
[423021967,1779761444000,-639.88,8.493e-05,2]
[423021968,1779761444000,-501.01977851,8.493e-05,2]
[423021974,1779761444000,-500.90615019,8.493e-05,2]
[423022052,1779761445000,-235.88790759,8.767e-05,2]
[423022051,1779761445000,-2039.24102257,8.685e-05,2]
[423022050,1779761445000,-1668.0,8.608e-05,2]
[423022049,1779761445000,-1712.62051442,8.585e-05,2]
[423022043,1779761445000,-500.0,8.493e-05,2]
[423022046,1779761445000,-16526.87,8.493e-05,2]
[423022040,1779761445000,-519.65,8.493e-05,2]
[423022037,1779761445000,-500.0,8.493e-05,2]
[423022044,1779761445000,-500.0,8.493e-05,2]
[423022053,1779761445000,-1700.5332,8.767e-05,2]
[423022045,1779761445000,-628.92,8.493e-05,2]
[423022041,1779761445000,-843.35,8.493e-05,2]
[423022061,1779761445000,-313.04883896,8.767e-05,2]
[423022055,1779761445000,-500.0,8.767e-05,2]
[423022056,1779761445000,-500.0,8.767e-05,2]
[423022054,1779761445000,-500.0,8.767e-05,2]
[423022058,1779761445000,-501.54409535,8.767e-05,2]
[423022059,1779761445000,-423.21206206,8.767e-05,2]
[423022062,1779761445000,-501.45056817,8.767e-05,2]
[423022060,1779761445000,-503.10396329,8.767e-05,2]
[423022063,1779761445000,-605.12962332,8.767e-05,2]
[423022064,1779761445000,-503.81304942,8.767e-05,2]
[423022069,1779761445000,-519.7729,8.767e-05,2]
[423022066,1779761445000,-500.0,8.767e-05,2]
[423022075,1779761445000,-555.80950951,8.767e-05,2]
[423022042,1779761445000,-500.30930705,8.493e-05,2]
[423022057,1779761445000,-500.0,8.767e-05,2]
[423022039,1779761445000,-151.25746186,8.493e-05,2]
[423022030,1779761445000,-1396.31,8.493e-05,2]
[423022047,1779761445000,-500.0,8.493e-05,2]
[423022068,1779761445000,-506.91219537,8.767e-05,2]
[423022013,1779761445000,-500.50041139,8.493e-05,2]
[423022012,1779761445000,-338.27197255,8.493e-05,2]
[423022021,1779761445000,-500.0,8.493e-05,2]
[423022020,1779761445000,-501.34670974,8.493e-05,2]
[423022014,1779761445000,-1273.71,8.493e-05,2]
[423022015,1779761445000,-725.57,8.493e-05,2]
[423022017,1779761445000,-593.54,8.493e-05,2]
[423022018,1779761445000,-501.55935881,8.493e-05,2]
[423022016,1779761445000,-505.7811461,8.493e-05,2]
[423022019,1779761445000,-501.47440408,8.493e-05,2]
[423022023,1779761445000,-1811.76,8.493e-05,2]
[423022048,1779761445000,-404.9517561,8.497e-05,2]
[423022034,1779761445000,-151.0,8.493e-05,2]
[423022035,1779761445000,-500.0,8.493e-05,2]
[423022033,1779761445000,-151.0,8.493e-05,2]
[423022022,1779761445000,-252.82081426,8.493e-05,2]
[423022027,1779761445000,-705.41,8.493e-05,2]
[423022024,1779761445000,-500.0,8.493e-05,2]
[423022029,1779761445000,-500.0,8.493e-05,2]
[423022025,1779761445000,-500.0,8.493e-05,2]
[423022028,1779761445000,-817.36,8.493e-05,2]
[423022026,1779761445000,-233.63192407,8.493e-05,2]
[423022032,1779761445000,-500.0,8.493e-05,2]
[423022038,1779761445000,-1520.37,8.493e-05,2]
[423022036,1779761445000,-151.0,8.493e-05,2]
[423022031,1779761445000,-500.50879741,8.493e-05,2]
[423022072,1779761445000,-501.67784698,8.767e-05,2]
[423022073,1779761445000,-501.25667404,8.767e-05,2]
[423022076,1779761445000,-1114.43,8.767e-05,2]
[423022104,1779761445000,-500.0,8.767e-05,2]
[423022100,1779761445000,-500.0,8.767e-05,2]
[423022102,1779761445000,-500.0,8.767e-05,2]
[423022108,1779761445000,-500.0,8.767e-05,2]
[423022109,1779761445000,-500.0,8.767e-05,2]
[423022107,1779761445000,-502.92741692,8.767e-05,2]
[423022116,1779761445000,-500.0,8.767e-05,2]
[423022111,1779761445000,-501.03485238,8.767e-05,2]
[423022110,1779761445000,-500.0,8.767e-05,2]
[423022117,1779761445000,-631.31277479,8.767e-05,2]
[423022112,1779761445000,-501.87952797,8.767e-05,2]
[423022121,1779761445000,-500.0,8.767e-05,2]
[423022120,1779761445000,-500.0,8.767e-05,2]
[423022119,1779761445000,-500.0,8.767e-05,2]
[423022114,1779761445000,-500.0,8.767e-05,2]
[423022123,1779761445000,-501.00780891,8.767e-05,2]
[423022128,1779761445000,-386.01433159,8.767e-05,2]
[423022130,1779761445000,-500.0,8.767e-05,2]
[423022126,1779761445000,-500.0,8.767e-05,2]
[423022143,1779761445000,-500.0,8.767e-05,2]
[423022132,1779761445000,-504.99600671,8.767e-05,2]
[423022141,1779761445000,-500.0,8.767e-05,2]
[423022145,1779761445000,-501.02823681,8.767e-05,2]
[423022137,1779761445000,-778.47,8.767e-05,2]
[423022139,1779761445000,-501.39759113,8.767e-05,2]
[423022134,1779761445000,-651.45,8.767e-05,2]
[423022067,1779761445000,-500.0,8.767e-05,2]
[423022094,1779761445000,-457.6376072,8.767e-05,2]
[423022098,1779761445000,-501.46516318,8.767e-05,2]
[423022118,1779761445000,-501.47695004,8.767e-05,2]
[423022096,1779761445000,-501.88293787,8.767e-05,2]
[423022097,1779761445000,-500.81136002,8.767e-05,2]
[423022071,1779761445000,-500.0,8.767e-05,2]
[423022070,1779761445000,-508.53,8.767e-05,2]
[423022147,1779761445000,-220.84118691,8.767e-05,2]
[423022077,1779761445000,-502.70177806,8.767e-05,2]
[423022078,1779761445000,-625.11864958,8.767e-05,2]
[423022081,1779761445000,-501.11437469,8.767e-05,2]
[423022080,1779761445000,-501.73097204,8.767e-05,2]
[423022082,1779761445000,-500.0,8.767e-05,2]
[423022079,1779761445000,-500.0,8.767e-05,2]
[423022083,1779761445000,-501.11387322,8.767e-05,2]
[423022085,1779761445000,-500.0,8.767e-05,2]
[423022086,1779761445000,-500.0,8.767e-05,2]
[423022084,1779761445000,-500.0,8.767e-05,2]
[423022065,1779761445000,-634.65869122,8.767e-05,2]
[423022095,1779761445000,-495.18972685,8.767e-05,2]
[423022088,1779761445000,-500.0,8.767e-05,2]
[423022090,1779761445000,-597.34,8.767e-05,2]
[423022093,1779761445000,-500.0,8.767e-05,2]
[423022091,1779761445000,-500.0,8.767e-05,2]
[423022089,1779761445000,-360.73130621,8.767e-05,2]
[423022092,1779761445000,-500.0,8.767e-05,2]
[423022105,1779761445000,-500.0,8.767e-05,2]
[423022106,1779761445000,-501.16307488,8.767e-05,2]
[423022087,1779761445000,-793.3,8.767e-05,2]
[423022103,1779761445000,-502.03818353,8.767e-05,2]
[423022099,1779761445000,-1223.94,8.767e-05,2]
[423022101,1779761445000,-500.68710562,8.767e-05,2]
[423022228,1779761446000,-500.0,8.767e-05,2]
[423022231,1779761446000,-639.88,8.767e-05,2]
[423022221,1779761446000,-1008.31,8.767e-05,2]
[423022235,1779761446000,-500.72820552,8.767e-05,2]
[423022229,1779761446000,-3268.63,8.767e-05,2]
[423022230,1779761446000,-1941.82,8.767e-05,2]
[423022209,1779761446000,-521.75669352,8.767e-05,2]
[423022207,1779761446000,-501.82828563,8.767e-05,2]
[423022211,1779761446000,-500.0,8.767e-05,2]
[423022226,1779761446000,-719.79,8.767e-05,2]
[423022223,1779761446000,-1046.45,8.767e-05,2]
[423022236,1779761446000,-1278.55,8.767e-05,2]
[423022224,1779761446000,-500.40506274,8.767e-05,2]
[423022239,1779761446000,-500.0,8.767e-05,2]
[423022253,1779761446000,-1294.75,8.767e-05,2]
[423022233,1779761446000,-500.0,8.767e-05,2]
[423022238,1779761446000,-500.0,8.767e-05,2]
[423022240,1779761446000,-900.0,8.767e-05,2]
[423022241,1779761446000,-500.0,8.767e-05,2]
[423022243,1779761446000,-501.0314836,8.767e-05,2]
[423022254,1779761446000,-962.38,8.767e-05,2]
[423022256,1779761446000,-811.18,8.767e-05,2]
[423022255,1779761446000,-963.75,8.767e-05,2]
[423022260,1779761446000,-500.0,8.767e-05,2]
[423022259,1779761446000,-500.0,8.767e-05,2]
[423022242,1779761446000,-500.0,8.767e-05,2]
[423022258,1779761446000,-1065.8,8.767e-05,2]
[423022237,1779761446000,-501.37457544,8.767e-05,2]
[423022219,1779761446000,-501.35580205,8.767e-05,2]
[423022158,1779761446000,-500.72512557,8.767e-05,2]
[423022213,1779761446000,-500.73002022,8.767e-05,2]
[423022245,1779761446000,-501.05769942,8.767e-05,2]
[423022160,1779761446000,-500.0,8.767e-05,2]
[423022156,1779761446000,-314.51250578,8.767e-05,2]
[423022164,1779761446000,-500.0,8.767e-05,2]
[423022150,1779761446000,-500.0,8.767e-05,2]
[423022162,1779761446000,-500.0,8.767e-05,2]
[423022154,1779761446000,-491.12289209,8.767e-05,2]
[423022166,1779761446000,-539.72829893,8.767e-05,2]
[423022152,1779761446000,-500.83080511,8.767e-05,2]
[423022168,1779761446000,-500.0,8.767e-05,2]
[423022170,1779761446000,-501.25174835,8.767e-05,2]
[423022172,1779761446000,-501.75077032,8.767e-05,2]
[423022174,1779761446000,-500.0,8.767e-05,2]
[423022217,1779761446000,-501.33597198,8.767e-05,2]
[423022176,1779761446000,-500.0,8.767e-05,2]
[423022184,1779761446000,-500.0,8.767e-05,2]
[423022192,1779761446000,-500.0,8.767e-05,2]
[423022182,1779761446000,-500.7579157,8.767e-05,2]
[423022186,1779761446000,-501.54855415,8.767e-05,2]
[423022178,1779761446000,-341.76563281,8.767e-05,2]
[423022190,1779761446000,-501.04173609,8.767e-05,2]
[423022194,1779761446000,-501.65367755,8.767e-05,2]
[423022199,1779761446000,-622.79928043,8.767e-05,2]
[423022197,1779761446000,-502.35110131,8.767e-05,2]
[423022201,1779761446000,-501.83170422,8.767e-05,2]
[423022203,1779761446000,-501.85884426,8.767e-05,2]
[423022205,1779761446000,-503.28512668,8.767e-05,2]
[423022215,1779761446000,-500.66356873,8.767e-05,2]
[423022188,1779761446000,-500.0,8.767e-05,2]
[423022247,1779761446000,-500.0,8.767e-05,2]
[423022180,1779761446000,-500.0,8.767e-05,2]
[423022249,1779761446000,-571.87,8.767e-05,2]
[423022295,1779761446000,-2272.55477753,8.785e-05,2]
[423022299,1779761446000,-559.31782244,8.821e-05,2]
[423022296,1779761446000,-864.0,8.786e-05,2]
[423022297,1779761446000,-283.64025196,8.821e-05,2]
[423022298,1779761446000,-501.11163089,8.821e-05,2]
[423022303,1779761446000,-160.0,8.823e-05,2]
[423022314,1779761446000,-1700.5332,9.041e-05,2]
[423022313,1779761446000,-1000.0,9e-05,2]
[423022302,1779761446000,-160.0,8.823e-05,2]
[423022311,1779761446000,-214.37596523,8.854e-05,7]
[423022306,1779761446000,-216.18540348,8.854e-05,7]
[423022323,1779761446000,-500.0,9.041e-05,2]
[423022305,1779761446000,-160.0,8.823e-05,2]
[423022292,1779761446000,-628.92,8.767e-05,2]
[423022304,1779761446000,-160.0,8.823e-05,2]
[423022310,1779761446000,-176.97674786,8.854e-05,2]
[423022308,1779761446000,-158.31225323,8.854e-05,7]
[423022309,1779761446000,-195.60782424,8.854e-05,7]
[423022312,1779761446000,-174.78467429,8.854e-05,2]
[423022317,1779761446000,-500.0,9.041e-05,2]
[423022316,1779761446000,-500.0,9.041e-05,2]
[423022315,1779761446000,-500.0,9.041e-05,2]
[423022322,1779761446000,-508.53,9.041e-05,2]
[423022321,1779761446000,-519.7729,9.041e-05,2]
[423022320,1779761446000,-562.74212763,9.041e-05,2]
[423022319,1779761446000,-502.19202745,9.041e-05,2]
[423022318,1779761446000,-493.86505336,9.041e-05,2]
[423022244,1779761446000,-500.0,8.767e-05,2]
[423022307,1779761446000,-166.46852435,8.854e-05,7]
[423022294,1779761446000,-500.0,8.767e-05,2]
[423022324,1779761446000,-1114.43,9.041e-05,2]
[423022300,1779761446000,-2383.01543708,8.823e-05,2]
[423022291,1779761446000,-500.0,8.767e-05,2]
[423022251,1779761446000,-2191.2,8.767e-05,2]
[423022262,1779761446000,-1477.58,8.767e-05,2]
[423022274,1779761446000,-1273.71,8.767e-05,2]
[423022261,1779761446000,-500.0,8.767e-05,2]
[423022275,1779761446000,-725.57,8.767e-05,2]
[423022264,1779761446000,-3982.73,8.767e-05,2]
[423022269,1779761446000,-2395.51,8.767e-05,2]
[423022266,1779761446000,-500.0,8.767e-05,2]
[423022263,1779761446000,-2277.42,8.767e-05,2]
[423022270,1779761446000,-828.07,8.767e-05,2]
[423022268,1779761446000,-921.17,8.767e-05,2]
[423022271,1779761446000,-500.0,8.767e-05,2]
[423022280,1779761446000,-500.0,8.767e-05,2]
[423022272,1779761446000,-4003.88,8.767e-05,2]
[423022277,1779761446000,-593.54,8.767e-05,2]
[423022293,1779761446000,-16526.87,8.767e-05,2]
[423022288,1779761446000,-1520.37,8.767e-05,2]
[423022301,1779761446000,-160.0,8.823e-05,2]
[423022290,1779761446000,-843.35,8.767e-05,2]
[423022284,1779761446000,-501.31731887,8.767e-05,2]
[423022286,1779761446000,-500.0,8.767e-05,2]
[423022289,1779761446000,-519.65,8.767e-05,2]
[423022282,1779761446000,-705.41,8.767e-05,2]
[423022285,1779761446000,-1396.31,8.767e-05,2]
[423022283,1779761446000,-817.36,8.767e-05,2]
[423022278,1779761446000,-500.0,8.767e-05,2]
[423022281,1779761446000,-500.0,8.767e-05,2]
[423022279,1779761446000,-1811.76,8.767e-05,2]
[423022287,1779761446000,-500.0,8.767e-05,2]
[423022365,1779761447000,-244.54586962,9.041e-05,2]
[423022360,1779761447000,-500.0,9.041e-05,2]
[423022362,1779761447000,-500.0,9.041e-05,2]
[423022361,1779761447000,-460.85766078,9.041e-05,2]
[423022363,1779761447000,-500.0,9.041e-05,2]
[423022354,1779761447000,-500.0,9.041e-05,2]
[423022353,1779761447000,-500.0,9.041e-05,2]
[423022364,1779761447000,-439.75095665,9.041e-05,2]
[423022359,1779761447000,-500.0,9.041e-05,2]
[423022358,1779761447000,-183.00766591,9.041e-05,2]
[423022356,1779761447000,-501.61246352,9.041e-05,2]
[423022375,1779761447000,-1278.55,9.041e-05,2]
[423022376,1779761447000,-500.58298145,9.041e-05,2]
[423022370,1779761447000,-500.0,9.041e-05,2]
[423022367,1779761447000,-1008.31,9.041e-05,2]
[423022369,1779761447000,-719.79,9.041e-05,2]
[423022372,1779761447000,-1941.82,9.041e-05,2]
[423022374,1779761447000,-500.0,9.041e-05,2]
[423022368,1779761447000,-1046.45,9.041e-05,2]
[423022371,1779761447000,-3268.63,9.041e-05,2]
[423022373,1779761447000,-639.88,9.041e-05,2]
[423022366,1779761447000,-378.62960043,9.041e-05,2]
[423022355,1779761447000,-501.1352964,9.041e-05,2]
[423022377,1779761447000,-900.0,9.041e-05,2]
[423022378,1779761447000,-500.0,9.041e-05,2]
[423022357,1779761447000,-340.84257667,9.041e-05,2]
[423022335,1779761447000,-500.0,9.041e-05,2]
[423022342,1779761447000,-501.17451258,9.041e-05,2]
[423022380,1779761447000,-500.0,9.041e-05,2]
[423022325,1779761447000,-499.53805496,9.041e-05,2]
[423022327,1779761447000,-500.0,9.041e-05,2]
[423022337,1779761447000,-500.0,9.041e-05,2]
[423022326,1779761447000,-500.0,9.041e-05,2]
[423022329,1779761447000,-614.8160719,9.041e-05,2]
[423022338,1779761447000,-501.14951036,9.041e-05,2]
[423022330,1779761447000,-793.3,9.041e-05,2]
[423022328,1779761447000,-500.0,9.041e-05,2]
[423022331,1779761447000,-501.43743627,9.041e-05,2]
[423022334,1779761447000,-500.0,9.041e-05,2]
[423022332,1779761447000,-597.34,9.041e-05,2]
[423022350,1779761447000,-500.0,9.041e-05,2]
[423022333,1779761447000,-504.20804315,9.041e-05,2]
[423022339,1779761447000,-500.0,9.041e-05,2]
[423022341,1779761447000,-613.55018426,9.041e-05,2]
[423022340,1779761447000,-502.05356586,9.041e-05,2]
[423022347,1779761447000,-471.59771833,9.041e-05,2]
[423022348,1779761447000,-500.0,9.041e-05,2]
[423022343,1779761447000,-500.0,9.041e-05,2]
[423022352,1779761447000,-778.47,9.041e-05,2]
[423022345,1779761447000,-502.16137345,9.041e-05,2]
[423022351,1779761447000,-651.45,9.041e-05,2]
[423022344,1779761447000,-590.26240904,9.041e-05,2]
[423022346,1779761447000,-502.13254286,9.041e-05,2]
[423022349,1779761447000,-502.05715644,9.041e-05,2]
[423022336,1779761447000,-1223.94,9.041e-05,2]
[423022391,1779761447000,-500.0,9.041e-05,2]
[423022392,1779761447000,-1477.58,9.041e-05,2]
[423022379,1779761447000,-500.0,9.041e-05,2]
[423022412,1779761447000,-500.0,9.041e-05,2]
[423022414,1779761447000,-519.65,9.041e-05,2]
[423022416,1779761447000,-500.0,9.041e-05,2]
[423022426,1779761447000,-519.7729,9.315e-05,2]
[423022427,1779761447000,-508.53,9.315e-05,2]
[423022421,1779761447000,-235.88790759,9.315e-05,2]
[423022417,1779761447000,-628.92,9.041e-05,2]
[423022418,1779761447000,-500.0,9.041e-05,2]
[423022420,1779761447000,-598.34209015,9.079e-05,2]
[423022419,1779761447000,-1036.28665087,9.078e-05,2]
[423022415,1779761447000,-843.35,9.041e-05,2]
[423022422,1779761447000,-1700.5332,9.315e-05,2]
[423022423,1779761447000,-539.8116135,9.315e-05,2]
[423022425,1779761447000,-500.0,9.315e-05,2]
[423022424,1779761447000,-500.0,9.315e-05,2]
[423022429,1779761447000,-1114.43,9.315e-05,2]
[423022390,1779761447000,-500.0,9.041e-05,2]
[423022431,1779761447000,-500.0,9.315e-05,2]